fUSD/lending_fUSD_20250623
["ID","MTS","AMOUNT","RATE_DAILY","PERIOD"]
[367084714,1750651891477,-537.45,0.00033698,7]
[367084715,1750651891487,-839.8,0.00033698,7]
[367084716,1750651891496,-1762.08,0.00033698,7]
[367084717,1750651891506,-520.06,0.00033698,7]
[367084718,1750651891518,-490.0,0.00033698,7]
[367084719,1750651891527,-1943.95,0.00033698,7]
[367084720,1750651891538,-2609.9,0.00033698,7]
[367084721,1750651891557,-1852.13,0.00033698,7]
[367084722,1750651891568,-490.0,0.00033698,7]
[367084723,1750651891579,-490.0,0.00033698,7]
[367084724,1750651891589,-2026.79,0.00033698,7]
[367084725,1750651891599,-490.0,0.00033698,7]
[367084726,1750651891609,-865.76,0.00033698,7]
[367084727,1750651891620,-490.0,0.00033698,7]
[367084728,1750651891630,-357.42415874,0.00033698,7]
[367084729,1750651891640,-2648.05,0.00033698,7]
[367084730,1750651891650,-490.0,0.00033698,7]
[367084731,1750651891660,-1863.02,0.00033698,7]
[367084732,1750651891669,-917.01,0.00033698,7]
[367084733,1750651891678,-5346.58,0.00033698,7]
[367084734,1750651891688,-516.0079978,0.00033698,7]
[367084735,1750651891698,-4479.73,0.00033698,7]
[367084736,1750651891708,-747.83,0.00033698,7]
[367084737,1750651891716,-1375.95,0.00033698,7]
[367084738,1750651891726,-1490.86,0.00033698,7]
[367084739,1750651891736,-490.0,0.00033698,7]
[367084740,1750651891744,-650.09,0.00033698,7]
[367084741,1750651891754,-2227.68,0.00033698,7]
[367084742,1750651891763,-1859.03,0.00033698,7]
[367084743,1750651891772,-6689.48,0.00033698,7]
[367084744,1750651891781,-490.0,0.00033698,7]
[367084745,1750651891791,-1361.6,0.00033698,7]
[367084746,1750651891800,-490.0,0.00033698,7]
[367084747,1750651891809,-613.6,0.00033698,7]
[367084748,1750651891818,-1438.57,0.00033698,7]
[367084749,1750651891828,-490.0,0.00033698,7]
[367084750,1750651891837,-2692.41,0.00033698,7]
[367084751,1750651891847,-490.0,0.00033698,7]
[367084752,1750651891857,-2713.39,0.00033698,7]
[367084753,1750651891867,-2019.32,0.00033698,7]
[367084754,1750651891877,-1916.37,0.00033698,7]
[367084755,1750651891886,-536.26,0.00033698,7]
[367084756,1750651891895,-490.0,0.00033698,7]
[367084757,1750651891905,-5931.78,0.00033698,7]
[367084758,1750651891916,-739.62,0.00033698,7]
[367084759,1750651891925,-862.17,0.00033698,7]
[367084760,1750651891936,-1015.27,0.00033698,7]
[367084761,1750651891946,-490.0,0.00033698,7]
[367084762,1750651891957,-490.0,0.00033698,7]
[367084763,1750651891968,-3544.45,0.00033698,7]
[367084764,1750651891978,-490.0,0.00033698,7]
[367084765,1750651891987,-994.76,0.00033698,7]
[367084766,1750651891998,-1758.5,0.00033698,7]
[367084767,1750651892007,-1861.47,0.00033698,7]
[367084768,1750651892016,-490.0,0.00033698,7]
[367084769,1750651892025,-2330.31,0.00033698,7]
[367084770,1750651892034,-490.0,0.00033698,7]
[367084771,1750651892043,-3185.92,0.00033698,7]
[367084772,1750651892052,-490.0,0.00033698,7]
[367084773,1750651892061,-2054.64,0.00033698,7]
[367084774,1750651892075,-1375.53,0.00033698,7]
[367084775,1750651892084,-490.0,0.00033698,7]
[367084776,1750651892093,-2322.2,0.00033698,7]
[367084777,1750651892103,-10423.54,0.00033698,7]
[367084778,1750651892114,-2331.29,0.00033698,7]
[367084779,1750651892123,-490.0,0.00033698,7]
[367084780,1750651892132,-1297.38,0.00033698,7]
[367084781,1750651892141,-1083.46,0.00033698,7]
[367084782,1750651892150,-494.44,0.00033698,7]
[367084783,1750651892159,-6605.52,0.00033698,7]
[367084784,1750651892168,-490.0,0.00033698,7]
[367084785,1750651892177,-490.0,0.00033698,7]
[367084786,1750651892186,-848.24,0.00033698,7]
[367084787,1750651892195,-982.97,0.00033698,7]
[367084788,1750651892203,-490.0,0.00033698,7]
[367084789,1750651892213,-3103.21,0.00033698,7]
[367084790,1750651892222,-1299.19,0.00033698,7]
[367084791,1750651892231,-490.0,0.00033698,7]
[367084792,1750651892240,-490.0,0.00033698,7]
[367084793,1750651892250,-1642.16,0.00033698,7]
[367084794,1750651892259,-1805.65,0.00033698,7]
[367084795,1750651892268,-789.98,0.00033698,7]
[367084796,1750651892277,-490.0,0.00033698,7]
[367084797,1750651892286,-1667.65,0.00033698,7]
[367084798,1750651892295,-490.0,0.00033698,7]
[367084799,1750651892304,-765.39,0.00033698,7]
[367084800,1750651892313,-491.63,0.00033698,7]
[367084801,1750651892322,-1091.48,0.00033698,7]
[367084802,1750651892332,-916.79,0.00033698,7]
[367084803,1750651892341,-325.06996461,0.00033698,7]
[367084804,1750651892350,-594.47,0.00033698,7]
[367084805,1750651892358,-490.0,0.00033698,7]
[367084806,1750651892367,-1664.4,0.00033698,7]
[367084807,1750651892376,-490.0,0.00033698,7]
[367084808,1750651892385,-1078.48,0.00033698,7]
[367084809,1750651892394,-944.54,0.00033698,7]
[367084810,1750651892403,-583.2,0.00033698,7]
[367084811,1750651892412,-1465.7,0.00033698,7]
[367084812,1750651892421,-3529.7,0.00033698,7]
[367084813,1750651892430,-490.0,0.00033698,7]
[367084814,1750651892439,-9567.21,0.00033698,7]
[367084815,1750651892448,-490.0,0.00033698,7]
[367084816,1750651892457,-634.98,0.00033698,7]
[367084817,1750651892466,-531.25,0.00033698,7]
[367084818,1750651892475,-490.0,0.00033698,7]
[367084819,1750651892485,-817.78,0.00033698,7]
[367084820,1750651892495,-490.0,0.00033698,7]
[367084821,1750651892504,-1577.37,0.00033698,7]
[367084822,1750651892512,-1940.57,0.00033698,7]
[367084823,1750651892521,-490.0,0.00033698,7]
[367084824,1750651892531,-873.23,0.00033698,7]
[367084825,1750651892540,-2258.54,0.00033698,7]
[367084826,1750651892549,-1964.7,0.00033698,7]
[367084827,1750651892558,-623.97,0.00033698,7]
[367084828,1750651892567,-733.65,0.00033698,7]
[367084829,1750651892578,-490.0,0.00033698,7]
[367084830,1750651892587,-793.56,0.00033698,7]
[367084831,1750651892596,-1662.36,0.00033698,7]
[367084832,1750651892606,-945.04,0.00033698,7]
[367084833,1750651892615,-1632.59,0.00033698,7]
[367084834,1750651892625,-853.38,0.00033698,7]
[367084835,1750651892634,-1792.08,0.00033698,7]
[367084836,1750651892643,-490.0,0.00033698,7]
[367084837,1750651892652,-4217.95,0.00033698,7]
[367084838,1750651892663,-490.0,0.00033698,7]
[367084839,1750651892672,-2012.92,0.00033698,7]
[367084840,1750651892681,-1845.4,0.00033698,7]
[367084841,1750651892691,-1729.48,0.00033698,7]
[367084842,1750651892701,-490.0,0.00033698,7]
[367084843,1750651892710,-2093.3,0.00033698,7]
[367084844,1750651892719,-1117.48,0.00033698,7]
[367084845,1750651892728,-917.78,0.00033698,7]
[367084846,1750651892738,-490.0,0.00033698,7]
[367084847,1750651892747,-1239.51,0.00033698,7]
[367084848,1750651892757,-490.0,0.00033698,7]
[367084849,1750651892766,-1792.43,0.00033698,7]
[367084850,1750651892776,-534.16,0.00033698,7]
[367084851,1750651892786,-1901.47,0.00033698,7]
[367084852,1750651892796,-3111.26,0.00033698,7]
[367084853,1750651892805,-1000.0,0.00033698,7]
[367084854,1750651892815,-490.0,0.00033698,7]
[367084855,1750651892826,-2040.0,0.00033698,7]
[367084856,1750651892835,-267.33544532,0.00033698,7]
[367084857,1750651892845,-2151.67,0.00033698,7]
[367084858,1750651892854,-490.0,0.00033698,7]
[367084859,1750651892864,-513.94,0.00033698,7]
[367084860,1750651892873,-1725.78,0.00033698,7]
[367084861,1750651892883,-490.0,0.00033698,7]
[367084862,1750651892892,-490.0,0.00033698,7]
[367084863,1750651892901,-736.15,0.00033698,7]
[367084864,1750651892911,-1080.28,0.00033698,7]
[367084865,1750651892920,-490.0,0.00033698,7]
[367084866,1750651892930,-2501.08,0.00033698,7]
[367084867,1750651892939,-1410.57,0.00033698,7]
[367084868,1750651892949,-490.0,0.00033698,7]
[367084869,1750651892958,-967.78,0.00033698,7]
[367084870,1750651892967,-490.0,0.00033698,7]
[367084871,1750651892977,-1693.69,0.00033698,7]
[367084872,1750651892986,-832.86,0.00033698,7]
[367084873,1750651892995,-915.92,0.00033698,7]
[367084874,1750651893004,-4277.0,0.00033698,7]
[367084875,1750651893014,-352.28989286,0.00033698,7]
[367084876,1750651893023,-1810.2,0.00033698,7]
[367084877,1750651893033,-1559.54,0.00033698,7]
[367084878,1750651893043,-490.0,0.00033698,7]
[367084879,1750651893053,-1819.11,0.00033698,7]
[367084880,1750651893064,-2817.57,0.00033698,7]
[367084881,1750651893080,-1597.01,0.00033698,7]
[367084882,1750651893091,-490.0,0.00033698,7]
[367084883,1750651893101,-1730.9,0.00033698,7]
[367084884,1750651893111,-825.86,0.00033698,7]
[367084885,1750651893122,-12777.66,0.00033698,7]
[367084886,1750651893132,-32952.05,0.00033698,7]
[367084887,1750651893142,-490.0,0.00033698,7]
[367084888,1750651893152,-490.0,0.00033698,7]
[367084889,1750651893162,-1743.87,0.00033698,7]
[367084890,1750651893173,-1416.72,0.00033698,30]
[367084891,1750651893183,-1375.9,0.00033698,7]
[367084892,1750651893193,-490.0,0.00033698,7]
[367084893,1750651893203,-2474.88,0.00033698,7]
[367084894,1750651893213,-490.0,0.00033698,7]
[367084895,1750651893224,-4057.33,0.00033698,7]
[367084896,1750651893234,-490.0,0.00033698,7]
[367084897,1750651893244,-216.9317329,0.00033698,7]
[367084898,1750651893254,-5349.15,0.00033698,7]
[367084899,1750651893264,-2082.79,0.00033698,7]
[367084900,1750651893274,-648.33,0.00033698,7]
[367084901,1750651893284,-1273.81,0.00033698,7]
[367084902,1750651893295,-490.0,0.00033698,7]
[367084903,1750651893304,-490.0,0.00033698,7]
[367084904,1750651893315,-717.07,0.00033698,7]
[367084905,1750651893325,-969.96,0.00033698,7]
[367084906,1750651893336,-626.15,0.00033698,7]
[367084907,1750651893346,-490.0,0.00033698,7]
[367084908,1750651893356,-1596.89,0.00033698,7]
[367084909,1750651893366,-490.0,0.00033698,7]
[367084910,1750651893376,-817.91,0.00033698,7]
[367084911,1750651893386,-2637.13,0.00033698,7]
[367084912,1750651893396,-1994.83,0.00033698,7]
[367084913,1750651893406,-1629.62,0.00033698,7]
[367084914,1750651893416,-3559.55,0.00033698,7]
[367084915,1750651893426,-1812.9,0.00033698,7]
[367084916,1750651893436,-490.0,0.00033698,2]
[367084917,1750651893446,-490.0,0.00033698,7]
[367084918,1750651893456,-7117.05,0.00033698,7]
[367084919,1750651893467,-1897.17,0.00033698,7]
[367084920,1750651893478,-2294.38,0.00033698,7]
[367084921,1750651893489,-1830.59,0.00033698,7]
[367084922,1750651893499,-490.0,0.00033698,7]
[367084923,1750651893509,-1860.18,0.00033698,7]
[367084924,1750651893520,-490.0,0.00033698,7]
[367084925,1750651893531,-1748.17,0.00033698,7]
[367084926,1750651893542,-5117.31,0.00033698,7]
[367084927,1750651893552,-490.0,0.00033698,7]
[367084928,1750651893563,-811.89,0.00033698,7]
[367084929,1750651893573,-1062.01,0.00033698,7]
[367084930,1750651893583,-2783.7,0.00033698,7]
[367084931,1750651893594,-1799.01,0.00033698,7]
[367084932,1750651893604,-520.43120679,0.00033698,7]
[367084933,1750651893614,-408.28544325,0.00033698,7]
[367084934,1750651893625,-1825.18,0.00033698,7]
[367084935,1750651893635,-490.0,0.00033698,7]
[367084936,1750651893645,-490.0,0.00033698,7]
[367084937,1750651893655,-1867.21,0.00033698,7]
[367084938,1750651893665,-10042.91,0.00033698,7]
[367084939,1750651893675,-490.0,0.00033698,7]
[367084940,1750651893684,-473.84147003,0.00033698,7]
[367084941,1750651893694,-490.0,0.00033698,7]
[367084942,1750651893704,-673.3,0.00033698,7]
[367084943,1750651893714,-490.0,0.00033698,7]
[367084944,1750651893724,-3359.6,0.00033698,7]
[367084945,1750651893734,-490.0,0.00033698,7]
[367084946,1750651893744,-1623.97,0.00033698,7]
[367084947,1750651893754,-859.43,0.00033698,7]
[367084948,1750651893763,-3581.54,0.00033698,7]
[367084949,1750651893773,-490.0,0.00033698,7]
[367084950,1750651893783,-651.37,0.00033698,7]
[367084951,1750651893793,-4081.92,0.00033698,7]
[367084952,1750651893802,-490.0,0.00033698,7]
[367084953,1750651893812,-6142.79,0.00033698,7]
[367084954,1750651893823,-490.0,0.00033698,7]
[367084955,1750651893833,-490.0,0.00033698,7]
[367084956,1750651893843,-1925.72,0.00033698,7]
[367084957,1750651893853,-490.0,0.00033698,7]
[367084958,1750651893863,-1766.36,0.00033698,7]
[367084959,1750651893872,-1935.47,0.00033698,7]
[367084960,1750651893882,-161.254702,0.00033698,7]
[367084961,1750651893892,-5691.77,0.00033698,7]
[367084962,1750651893902,-490.0,0.00033698,7]
[367084963,1750651893912,-490.0,0.00033698,7]
[367084964,1750651893922,-2227.47,0.00033698,7]
[367084965,1750651893932,-490.0,0.00033698,7]
[367084966,1750651893942,-581.06,0.00033698,7]
[367084967,1750651893953,-2111.75,0.00033698,7]
[367084968,1750651893963,-3603.18,0.00033698,7]
[367084969,1750651893974,-490.0,0.00033698,7]
[367084970,1750651893984,-490.0,0.00033698,7]
[367084971,1750651893995,-490.0,0.00033698,7]
[367084972,1750651894005,-1221.8,0.00033698,7]
[367084973,1750651894015,-914.86,0.00033698,7]
[367084974,1750651894025,-490.0,0.00033698,7]
[367084975,1750651894035,-812.95,0.00033698,7]
[367084976,1750651894046,-548.67463718,0.00033698,7]
[367084977,1750651894056,-1685.75,0.00033698,7]
[367084978,1750651894068,-490.0,0.00033698,7]
[367084979,1750651894081,-490.0,0.00033698,7]
[367084980,1750651894091,-816.99,0.00033698,7]
[367084981,1750651894101,-1588.11,0.00033698,7]
[367084982,1750651894111,-7811.75,0.00033698,7]
[367084983,1750651894121,-490.0,0.00033698,7]
[367084984,1750651894132,-490.0,0.00033698,7]
[367084985,1750651894142,-1760.98,0.00033698,7]
[367084986,1750651894153,-510.45,0.00033698,7]
[367084987,1750651894163,-490.0,0.00033698,7]
[367084988,1750651894174,-490.0,0.00033698,7]
[367084989,1750651894184,-274.920312,0.00033698,7]
[367084990,1750651894194,-490.0,0.00033698,7]
[367084991,1750651894204,-3293.31,0.00033698,7]
[367084992,1750651894213,-2208.73,0.00033698,7]
[367084993,1750651894223,-1923.63,0.00033698,7]
[367084994,1750651894233,-844.74,0.00033698,7]
[367084995,1750651894243,-1717.67,0.00033698,7]
[367084996,1750651894253,-490.0,0.00033698,7]
[367084997,1750651894263,-559.87,0.00033698,7]
[367084998,1750651894273,-1500.04,0.00033698,7]
[367084999,1750651894283,-490.0,0.00033698,7]
[367085000,1750651894292,-490.0,0.00033698,7]
[367085001,1750651894302,-1386.66,0.00033698,7]
[367085002,1750651894312,-687.72,0.00033698,7]
[367085003,1750651894323,-490.0,0.00033698,7]
[367085004,1750651894333,-516.92341771,0.00033698,7]
[367085005,1750651894343,-2004.11,0.00033698,7]
[367085006,1750651894353,-3235.4,0.00033698,7]
[367085007,1750651894362,-490.0,0.00033698,7]
[367085008,1750651894372,-1162.79,0.00033698,7]
[367085009,1750651894383,-1134.9,0.00033698,7]
[367085010,1750651894393,-1902.82,0.00033698,7]
[367085011,1750651894403,-490.0,0.00033698,7]
[367085012,1750651894414,-490.0,0.00033698,7]
[367085013,1750651894424,-730.24,0.00033698,7]
[367085014,1750651894434,-1813.5,0.00033698,7]
[367085015,1750651894445,-316.76812827,0.00033698,7]
[367085016,1750651894455,-911.13,0.00033698,7]
[367085017,1750651894466,-1589.43,0.00033698,7]
[367085018,1750651894477,-2873.68,0.00033698,7]
[367085019,1750651894488,-658.7,0.00033698,7]
[367085020,1750651894497,-490.0,0.00033698,7]
[367085021,1750651894507,-366.08294946,0.00033698,7]
[367085022,1750651894516,-4693.52,0.00033698,7]
[367085023,1750651894526,-902.62,0.00033698,7]
[367085024,1750651894536,-490.0,0.00033698,7]
[367085025,1750651894546,-1291.3,0.00033698,7]
[367085026,1750651894555,-4132.69,0.00033698,7]
[367085027,1750651894565,-901.29,0.00033698,7]
[367085028,1750651894576,-993.64,0.00033698,7]
[367085029,1750651894586,-490.0,0.00033698,7]
[367085030,1750651894596,-1151.59,0.00033698,2]
[367085031,1750651894606,-712.25,0.00033698,7]
[367085032,1750651894616,-1490.22,0.00033698,7]
[367085033,1750651894625,-722.74,0.00033698,7]
[367085034,1750651894635,-490.0,0.00033698,7]
[367085035,1750651894645,-490.0,0.00033698,7]
[367085036,1750651894655,-490.0,0.00033698,7]
[367085037,1750651894664,-150.0,0.00033699,2]
[367085038,1750651894675,-2470.66,0.000337,5]
[367085039,1750651894684,-58503.27,0.000337,14]
[367085040,1750651894695,-426.42331311,0.00033714,15]
[367085041,1750651894705,-250.10511796,0.00033718,5]
[367085042,1750651894715,-1001.51810074,0.00033721,5]
[367085043,1750651894727,-500.1426444,0.00033721,2]
[367085044,1750651894737,-289.82455474,0.00033721,5]
[367085045,1750651894747,-501.82110259,0.00033721,5]
[367085046,1750651894756,-762.5970682,0.00033721,5]
[367085047,1750651894766,-998.40554987,0.00033721,5]
[367085048,1750651894776,-1000.0,0.00033721,5]
[367085049,1750651894785,-223.47399523,0.00033781,30]
[367085050,1750651894797,-200.0,0.000338,12]
[367085051,1750651894807,-247.26136862,0.00033838,2]
[367085052,1750651894818,-162.49570099,0.00033869,2]
[367085053,1750651894827,-168.0,0.0003388,2]
[367085054,1750651894837,-654.69,0.00033886,2]
[367085055,1750651894848,-500.0,0.00033886,7]
[367085056,1750651894859,-500.0,0.00033886,7]
[367085057,1750651894869,-500.0,0.00033886,7]
[367085058,1750651894879,-500.0,0.00033886,7]
[367085059,1750651894890,-200.0,0.000339,12]
[367085060,1750651894900,-156.44439269,0.000339,2]
[367085061,1750651894911,-156.44439252,0.000339,2]
[367085062,1750651894924,-200.0,0.000339,12]
[367085063,1750651894935,-156.44439252,0.000339,2]
[367085064,1750651894946,-156.44439252,0.000339,2]
[367085065,1750651894957,-156.44439252,0.000339,2]
[367085066,1750651894969,-156.44439252,0.000339,2]
[367085067,1750651894978,-156.44439252,0.000339,2]
[367085068,1750651894988,-156.44439252,0.000339,2]
[367085069,1750651894998,-156.44439252,0.000339,2]
[367085070,1750651895008,-156.44439252,0.000339,2]
[367085071,1750651895017,-156.44439252,0.000339,2]
[367085072,1750651895027,-156.44439252,0.000339,2]
[367085073,1750651895036,-156.44439252,0.000339,2]
[367085074,1750651895046,-156.44439252,0.000339,2]
[367085075,1750651895056,-156.44439252,0.000339,2]
[367085076,1750651895066,-156.44439252,0.000339,2]
[367085077,1750651895080,-156.44439252,0.000339,2]
[367085078,1750651895091,-156.44439252,0.000339,2]
[367085079,1750651895100,-156.44439252,0.000339,2]
[367085080,1750651895110,-223.47399523,0.00033918,30]
[367085081,1750651895121,-170.97,0.00033933,2]
[367085082,1750651895131,-455.44,0.00033933,2]
[367085083,1750651895140,-308.86,0.00033933,2]
[367085084,1750651895151,-355.09,0.00033933,2]
[367085085,1750651895161,-1180.24,0.00033933,2]
[367085086,1750651895172,-1165.77,0.00033933,2]
[367085087,1750651895182,-170.97,0.00033933,2]
[367085088,1750651895192,-355.09,0.00033933,2]
[367085089,1750651895201,-170.97,0.00033933,2]
[367085090,1750651895211,-314.30420292,0.00033933,2]
[367085091,1750651896667,-490.0,0.00032876,7]
[367085092,1750651896677,-151.0,0.00032876,7]
[367085093,1750651896686,-490.0,0.0003315,7]
[367085094,1750651896696,-423.94972892,0.0003315,7]
[367085095,1750651896705,-490.0,0.00033424,7]
[367085096,1750651896715,-490.0,0.00033424,7]
[367085097,1750651896724,-490.0,0.00033698,7]
[367085098,1750651896733,-730.10730375,0.00033933,2]
[367085099,1750651897904,-490.0,0.00032876,7]
[367085100,1750651897914,-151.0,0.00032876,7]
[367085101,1750651897923,-490.0,0.00032876,7]
[367085102,1750651897933,-490.0,0.00032876,7]
[367085103,1750651897942,-513.33637034,0.00032876,7]
[367085104,1750651897951,-490.0,0.00032876,7]
[367085105,1750651897960,-344.81249665,0.00032876,7]
[367085106,1750651897971,-145.18750335,0.00032876,7]
[367085107,1750651897980,-189.49657156,0.00032876,7]
[367085108,1750651898044,-300.50342844,0.00032876,7]
[367085109,1750651898053,-490.0,0.00032876,7]
[367085110,1750651898062,-500.0,0.00032876,7]
[367085111,1750651898080,-424.69439053,0.00032876,7]
[367085112,1750651898215,-75.30560947,0.00032876,7]
[367085113,1750651898225,-295.95444553,0.00032876,7]
[367085114,1750651899415,-245.73555447,0.00032876,7]
[367085115,1750651899424,-500.0,0.00032876,7]
[367085116,1750651899433,-490.0,0.00032876,7]
[367085117,1750651899442,-490.1999842,0.00032876,7]
[367085118,1750651899451,-500.0,0.00032876,7]
[367085119,1750651899461,-500.0,0.00032876,7]
[367085120,1750651899470,-245.95915066,0.00032876,7]
[367085121,1750651899602,-254.04084934,0.00032876,7]
[367085122,1750651899612,-259.96486407,0.00032876,7]
[367085123,1750651899647,-240.03513593,0.00032876,7]
[367085124,1750651899657,-490.0,0.00032876,7]
[367085125,1750651899666,-490.0,0.00032876,7]
[367085126,1750651899676,-500.0,0.00032876,7]
[367085127,1750651899685,-429.16486407,0.00032876,7]
[367085128,1750651899696,-60.83513593,0.00032876,7]
[367085129,1750651899705,-418.61318439,0.00032876,2]
[367085130,1750651899716,-151.94796183,0.00032876,2]
[367085131,1750651899726,-324.8692176,0.00032876,7]
[367085135,1750652560877,169.06,0.00013699,2]
[367085366,1750653040387,-474.50818167,0.00024,5]
[367085982,1750653046191,-258.59819997,0.00024,5]
[367086009,1750653046447,-1037.3,0.00024,5]
[367087417,1750653121433,-588.0,0.00021555,2]
[367087418,1750653668286,-168.0,0.00020055,2]
[367087419,1750653713545,169.06,0.00013699,2]
[367087421,1750653758301,-490.0,0.00020055,2]
[367087423,1750653781645,-2328.22174,0.00020055,2]
[367087425,1750653851441,-748.2323829,0.00021152,2]
[367087442,1750654088163,-1799.43432092,0.0002139,2]
[367087502,1750654232375,-748.23238288,0.00021242,2]
[367087503,1750654232385,-528.78742908,0.0002139,2]
[367087504,1750654232393,-748.23238288,0.00021904,2]
[367087505,1750654232403,-162.49570099,0.000221,2]
[367087506,1750654232412,-470.37302807,0.000221,2]
[367087507,1750654232421,-500.0,0.00022188,2]
[367087508,1750654232430,-500.0,0.00022188,2]
[367087509,1750654232440,-500.0,0.00022188,2]
[367087510,1750654232449,-500.0,0.00022188,2]
[367087511,1750654232458,-500.0,0.00022188,2]
[367087512,1750654232467,-500.0,0.00022188,2]
[367087513,1750654232477,-500.0,0.00022188,2]
[367087514,1750654232487,-500.0,0.00022188,2]
[367087515,1750654232496,-500.0,0.00022188,2]
[367087516,1750654232506,-500.0,0.00022188,2]
[367087517,1750654232515,-500.0,0.00022188,2]
[367087518,1750654232525,-500.0,0.00022188,2]
[367087519,1750654232534,-500.0,0.00022188,2]
[367087520,1750654232544,-500.0,0.00022188,2]
[367087521,1750654232553,-500.0,0.00022188,2]
[367087522,1750654232563,-500.0,0.00022188,2]
[367087523,1750654232572,-371.56721226,0.00022188,2]
[367087524,1750654232582,-500.0,0.00022188,2]
[367087525,1750654232591,-500.0,0.00022188,2]
[367087526,1750654232600,-500.0,0.00022188,2]
[367087527,1750654232610,-500.0,0.00022188,2]
[367087528,1750654232619,-166.78578167,0.00022188,2]
[367087529,1750654232629,-462.22233514,0.00022188,2]
[367087530,1750654232638,-500.0,0.00022188,2]
[367087531,1750654232647,-412.09277319,0.00022188,2]
[367087532,1750654232659,-87.90722681,0.00022188,2]
[367087533,1750654232668,-224.42444544,0.00022188,2]
[367087534,1750654232681,-275.57555456,0.00022188,2]
[367087536,1750654232690,-135.83962887,0.00022188,2]
[367087543,1750654232742,-82.36859814,0.00022188,2]
[367087544,1750654232751,-500.0,0.00022188,2]
[367087547,1750654232760,-500.0,0.00022188,2]
[367087550,1750654232769,-211.03146899,0.00022188,2]
[367087553,1750654232779,-500.0,0.00022188,2]
[367087555,1750654232788,-500.0,0.00022188,2]
[367087557,1750654232798,-500.0,0.00022188,2]
[367087558,1750654232808,-500.0,0.00022188,2]
[367087560,1750654232818,-500.0,0.00022188,2]
[367087562,1750654232828,-500.0,0.00022188,2]
[367087564,1750654232838,-500.0,0.00022188,2]
[367087566,1750654232848,-500.0,0.00022188,2]
[367087567,1750654232858,-500.0,0.00022188,2]
[367087569,1750654232867,-500.0,0.00022188,2]
[367087571,1750654232877,-539.12534817,0.00022188,2]
[367087572,1750654232888,-500.0,0.00022188,2]
[367087574,1750654232898,-500.0,0.00022188,2]
[367087576,1750654232908,-500.0,0.00022188,2]
[367087577,1750654232918,-500.0,0.00022188,2]
[367087578,1750654232928,-500.0,0.00022188,2]
[367087579,1750654232938,-500.0,0.00022188,2]
[367087580,1750654232948,-500.0,0.00022188,2]
[367087582,1750654232958,-500.0,0.00022188,2]
[367087584,1750654232967,-500.0,0.00022188,2]
[367087586,1750654232977,-500.0,0.00022188,2]
[367087588,1750654232986,-24231.38200493,0.00022189,5]
[367087590,1750654232999,-591.52276055,0.00022189,5]
[367087593,1750654233046,-500.0,0.00022188,2]
[367087594,1750654233056,-500.0,0.00022188,2]
[367087595,1750654233066,-500.0,0.00022188,2]
[367087596,1750654233076,-500.0,0.00022188,2]
[367087597,1750654233085,-7135.49441961,0.00022189,5]
[367087598,1750654233102,-500.0,0.00022188,2]
[367087599,1750654233115,-389.60819173,0.00022189,5]
[367087600,1750654233176,-500.0,0.00022188,2]
[367087601,1750654233187,-500.0,0.00022188,2]
[367087602,1750654233197,-35.7562192,0.00022188,2]